[Event "37th Andorra Open 2019"]
[Site "Caldea"]
[Date "2019.08.01"]
[Round "6.1"]
[White "Lagarde, Maxime"]
[Black "Arizmendi Martinez, Julen Luis"]
[Result "1-0"]
[ECO "B12"]
[WhiteElo "2597"]
[BlackElo "2512"]
[Annotator "ChessBase"]
[PlyCount "131"]
[EventDate "2018.07.21"]
[EventType "swiss"]
[EventCountry "AND"]
[SourceTitle "playchess.com"]
[Source "ChessBase"]
[SourceQuality "1"]
[TimeControl "40/5400+30:1800+30"]

1. e4 {[%emt 0:00:29]} c6 {[%emt 0:00:54]} 2. d4 {[%emt 0:01:09]} d5 {[%emt 0:00:07]} 3. e5 {[%emt 0:00:02]} Bf5 {[%emt 0:00:16]} 4. Nf3 {[%emt 0:00:10]} e6 {[%emt 0:00:45]} 5. Be2 {[%emt 0:00:05]} c5 {[%emt 0:01:56]} 6. Be3 {[%emt 0:00:32]} cxd4 {[%emt 0:00:47]} 7. Nxd4 {[%emt 0:00:08]} Ne7 {[%emt 0:00:20]} 8. O-O {[%emt 0:07:21]} Nbc6 {[%emt 0:03:27]} 9. Bb5 {[%emt 0:05:47]} a6 {[%emt 0:24:25]} 10. Bxc6+ {[%emt 0:00:06]} Nxc6 {[%emt 0:00:06]} 11. Nxf5 {[%emt 0:07:48]} exf5 {[%emt 0:00:21]} 12. c3 {[%emt 0:04:30]} Be7 {[%emt 0:10:57]} 13. f4 {[%emt 0:03:37]} O-O {[%emt 0:09:34]} 14. Qd3 {[%emt 0:00:18]} Qd7 {[%emt 0:02:52]} 15. Nd2 {[%emt 0:00:34]} Qe6 {[%emt 0:18:07]} 16. Nb3 {[%emt 0:03:07]} Rfd8 {[%emt 0:01:46]} 17. a4 {[%emt 0:06:43]} g6 {[%emt 0:01:21]} 18. a5 {[%emt 0:01:08]} d4 {[%emt 0:02:01]} 19. Nxd4 {[%emt 0:01:35]} Qd5 {[%emt 0:02:12]} 20. Rfd1 {[%emt 0:07:34]} Bc5 {[%emt 0:04:56]} 21. Qe2 {[%emt 0:17:47]} Qe4 {[%emt 0:03:47]} 22. Qf2 {[%emt 0:01:05]} Qd5 {[%emt 0:01:36]} 23. Qe1 {[%emt 0:07:09]} Qe4 {[%emt 0:03:46]} 24. Nxf5 {[%emt 0:03:52]} Bxe3+ {[%emt 0:01:38]} 25. Nxe3 {[%emt 0:00:05]} Qxf4 {[%emt 0:00:09]} 26. Nd5 {[%emt 0:02:40]} Qxe5 {[%emt 0:00:04]} 27. Qxe5 {[%emt 0:03:24]} Nxe5 {[%emt 0:00:01]} 28. Nb6 {[%emt 0:01:37]} Rab8 {[%emt 0:00:26]} 29. b4 {[%emt 0:04:42]} f6 {[%emt 0:01:26]} 30. Rd4 {[%emt 0:03:15]} Kf7 {[%emt 0:02:41]} 31. Rad1 {[%emt 0:01:17]} Rxd4 {[%emt 0:00:53]} 32. cxd4 {[%emt 0:02:26]} Rd8 {[%emt 0:00:19]} 33. Kf2 {[%emt 0:00:11]} Nd7 {[%emt 0:01:22]} 34. Nc4 {[%emt 0:00:43]} Ne5 {[%emt 0:00:43]} 35. Nb6 {[%emt 0:01:32]} Nd7 {[%emt 0:00:06]} 36. Na4 {[%emt 0:00:12]} Ke6 {[%emt 0:01:08]} 37. Ke3 {[%emt 0:01:06]} Kd6 {[%emt 0:00:38]} 38. Kd3 {[%emt 0:02:07]} Re8 {[%emt 0:00:29]} 39. Rb1 {[%emt 0:00:52]} Kc6 {[%emt 0:00:34]} 40. Nc3 {[%emt 0:00:00]} f5 {[%emt 0:00:00]} 41. d5+ {[%emt 0:08:30]} Kd6 {[%emt 0:01:48]} 42. b5 {[%emt 0:06:46]} Kc5 {[%emt 0:08:50]} 43. bxa6 {[%emt 0:00:05]} bxa6 {[%emt 0:00:08]} 44. Rb7 {[%emt 0:00:07]} Ne5+ {[%emt 0:03:10]} 45. Kc2 {[%emt 0:00:26]} Nc4 {[%emt 0:01:43]} 46. Rxh7 {[%emt 0:00:30]} Ne3+ {[%emt 0:12:11]} 47. Kd3 {[%emt 0:00:05]} Nxd5 {[%emt 0:00:20]} 48. Nxd5 {[%emt 0:00:18]} Rd8 {[%emt 0:00:03]} 49. Rc7+ {[%emt 0:02:13]} Kxd5 {[%emt 0:00:07]} 50. Ke3 {[%emt 0:00:12]} Rb8 {[%emt 0:04:29]} 51. h4 {[%emt 0:03:46]} Rb4 {[%emt 0:01:38]} 52. g3 {[%emt 0:00:26]} Ra4 {[%emt 0:02:00]} 53. Rg7 {[%emt 0:00:29]} Rg4 {[%emt 0:00:28]} 54. Kf3 {[%emt 0:00:04]} Kc6 {[%emt 0:00:30]} 55. Rf7 {[%emt 0:00:34]} Kb5 {[%emt 0:00:36]} 56. h5 {[%emt 0:00:11]} Kxa5 {[%emt 0:00:27]} 57. h6 {[%emt 0:01:38]} Rg5 {[%emt 0:00:02]} 58. h7 {[%emt 0:00:35]} Rh5 {[%emt 0:00:01]} 59. Kf4 {[%emt 0:00:49]} Kb4 {[%emt 0:00:58]} 60. Ke5 {[%emt 0:01:33]} a5 {[%emt 0:00:58]} 61. Kf6 {[%emt 0:00:15]} Rh3 {[%emt 0:00:25]} 62. Kg7 {[%emt 0:05:39]} a4 {[%emt 0:00:06]} 63. h8=Q {[%emt 0:00:30]} Rxh8 {[%emt 0:00:03]} 64. Kxh8 {[%emt 0:00:02]} a3 {[%emt 0:00:07]} 65. Kg7 {[%emt 0:00:05]} g5 {[%emt 0:00:05]} 66. Rxf5 {[%emt 0:00:10]} 1-0

[Event "37th Andorra Open 2019"]
[Site "Caldea"]
[Date "2019.08.01"]
[Round "6.4"]
[White "Ochsner, Bjorn Moller"]
[Black "Rychagov, Andrey"]
[Result "1/2-1/2"]
[ECO "C09"]
[WhiteElo "2483"]
[BlackElo "2537"]
[Annotator "ChessBase"]
[PlyCount "46"]
[EventDate "2018.07.21"]
[EventType "swiss"]
[EventCountry "AND"]
[SourceTitle "playchess.com"]
[Source "ChessBase"]
[SourceQuality "1"]
[TimeControl "40/5400+30:1800+30"]

1. e4 {[%emt 0:00:00]} e6 {[%emt 0:00:00]} 2. d4 {[%emt 0:00:00]} d5 {[%emt 0:00:00]} 3. Nd2 {[%emt 0:00:00]} c5 {[%emt 0:00:42]} 4. exd5 {[%emt 0:00:17]} exd5 {[%emt 0:00:05]} 5. Ngf3 {[%emt 0:00:10]} Nc6 {[%emt 0:00:08]} 6. Bb5 {[%emt 0:00:07]} Bd6 {[%emt 0:00:06]} 7. dxc5 {[%emt 0:00:25]} Bxc5 {[%emt 0:00:03]} 8. O-O {[%emt 0:00:14]} Nge7 {[%emt 0:00:09]} 9. Nb3 {[%emt 0:00:21]} Bd6 {[%emt 0:00:08]} 10. Re1 {[%emt 0:00:29]} O-O {[%emt 0:00:38]} 11. Bd3 {[%emt 0:00:14]} h6 {[%emt 0:02:04]} 12. h3 {[%emt 0:00:23]} Bf5 {[%emt 0:00:51]} 13. Bxf5 {[%emt 0:00:16]} Nxf5 {[%emt 0:00:04]} 14. Qd3 {[%emt 0:00:19]} Qd7 {[%emt 0:00:55]} 15. Bd2 {[%emt 0:00:30]} Rfe8 {[%emt 0:01:38]} 16. Rad1 {[%emt 0:00:23]} Rxe1+ {[%emt 0:13:12]} 17. Bxe1 {[%emt 0:00:23]} Rd8 {[%emt 0:00:58]} 18. Bc3 {[%emt 0:15:46]} Nfe7 {[%emt 0:05:44]} 19. Nbd4 {[%emt 0:13:59]} Ng6 {[%emt 0:01:54]} 20. Qf5 {[%emt 0:15:29]} Qxf5 {[%emt 0:00:43]} 21. Nxf5 {[%emt 0:00:14]} f6 {[%emt 0:00:09]} 22. Kf1 {[%emt 0:02:22]} Be5 {[%emt 0:03:33]} 23. Bd4 {[%emt 0:02:09]} Kf7 {[%emt 0:03:18]} 1/2-1/2

[Event "37th Andorra Open 2019"]
[Site "Caldea"]
[Date "2019.08.01"]
[Round "6.5"]
[White "Kogan, Arthur"]
[Black "Aloma Vidal, Robert"]
[Result "1-0"]
[ECO "C48"]
[WhiteElo "2535"]
[BlackElo "2419"]
[Annotator "ChessBase"]
[PlyCount "49"]
[EventDate "2018.07.21"]
[EventType "swiss"]
[EventCountry "AND"]
[SourceTitle "playchess.com"]
[Source "ChessBase"]
[SourceQuality "1"]
[TimeControl "40/5400+30:1800+30"]

1. e4 {[%emt 0:00:00]} e5 {[%emt 0:04:15]} 2. Nf3 {[%emt 0:00:00]} Nc6 {[%emt 0:00:08]} 3. Nc3 {[%emt 0:01:53]} Nf6 {[%emt 0:00:12]} 4. Bb5 {[%emt 0:00:08]} Bc5 {[%emt 0:00:39]} 5. d3 {[%emt 0:03:09]} O-O {[%emt 0:04:48]} 6. Bg5 {[%emt 0:02:56]} h6 {[%emt 0:11:40]} 7. Bh4 {[%emt 0:00:42]} g5 {[%emt 0:21:46]} 8. Bg3 {[%emt 0:03:21]} d6 {[%emt 0:02:03]} 9. Qd2 {[%emt 0:14:13]} Nd4 {[%emt 0:08:27]} 10. h4 {[%emt 0:15:01]} g4 {[%emt 0:00:49]} 11. Nxd4 {[%emt 0:00:57]} exd4 {[%emt 0:00:07]} 12. Ne2 {[%emt 0:01:16]} c6 {[%emt 0:00:14]} 13. Ba4 {[%emt 0:01:49]} Kh7 {[%emt 0:08:24]} 14. h5 {[%emt 0:14:32]} d5 {[%emt 0:03:01]} 15. e5 {[%emt 0:01:34]} Ng8 {[%emt 0:00:29]} 16. c3 {[%emt 0:02:29]} dxc3 {[%emt 0:03:31]} 17. bxc3 {[%emt 0:03:08]} d4 {[%emt 0:01:01]} 18. Qf4 {[%emt 0:08:28]} Ne7 {[%emt 0:07:18]} 19. Bh4 {[%emt 0:01:40]} Qa5 {[%emt 0:06:28]} 20. Bb3 {[%emt 0:08:06]} Nf5 {[%emt 0:07:37]} 21. Bf6 {[%emt 0:03:32]} Be6 {[%emt 0:01:33]} 22. O-O {[%emt 0:04:15]} Rg8 {[%emt 0:03:16]} 23. Ng3 {[%emt 0:02:03]} Ng7 {[%emt 0:03:07]} 24. Qe4+ {[%emt 0:00:48]} Kh8 {[%emt 0:00:08]} 25. Bxe6 {[%emt 0:00:13]} 1-0

[Event "37th Andorra Open 2019"]
[Site "Caldea"]
[Date "2019.08.01"]
[Round "6.6"]
[White "Asis Gargatagli, Hipolito"]
[Black "Garcia Martin, Marta"]
[Result "1/2-1/2"]
[ECO "C45"]
[WhiteElo "2506"]
[BlackElo "2335"]
[Annotator "ChessBase"]
[PlyCount "81"]
[EventDate "2018.07.21"]
[EventType "swiss"]
[EventCountry "AND"]
[SourceTitle "playchess.com"]
[Source "ChessBase"]
[SourceQuality "1"]
[TimeControl "40/5400+30:1800+30"]

1. e4 {[%emt 0:04:53]} e5 {[%emt 0:00:00]} 2. Nf3 {[%emt 0:00:34]} Nc6 {[%emt 0:00:00]} 3. d4 {[%emt 0:01:01]} exd4 {[%emt 0:00:00]} 4. Nxd4 {[%emt 0:00:04]} Nf6 {[%emt 0:00:48]} 5. Nxc6 {[%emt 0:00:26]} bxc6 {[%emt 0:00:05]} 6. e5 {[%emt 0:00:08]} Qe7 {[%emt 0:00:11]} 7. Qe2 {[%emt 0:00:08]} Nd5 {[%emt 0:00:05]} 8. h4 {[%emt 0:00:05]} a5 {[%emt 0:05:26]} 9. g3 {[%emt 0:01:40]} Ba6 {[%emt 0:21:50]} 10. c4 {[%emt 0:01:09]} Qd8 {[%emt 0:12:58]} 11. Qe4 {[%emt 0:20:42]} Bb4+ {[%emt 0:00:52]} 12. Nd2 {[%emt 0:02:33]} Nb6 {[%emt 0:03:59]} 13. Bd3 {[%emt 0:09:41]} Qe7 {[%emt 0:11:19]} 14. O-O {[%emt 0:01:30]} Qe6 {[%emt 0:01:26]} 15. b3 {[%emt 0:12:19]} Bc3 {[%emt 0:08:12]} 16. Rb1 {[%emt 0:02:37]} Bxe5 {[%emt 0:00:29]} 17. Re1 {[%emt 0:20:19]} Bd6 {[%emt 0:03:40]} 18. Bb2 {[%emt 0:03:26]} Qxe4 {[%emt 0:00:30]} 19. Nxe4 {[%emt 0:06:33]} O-O {[%emt 0:00:25]} 20. Nxd6 {[%emt 0:00:38]} cxd6 {[%emt 0:00:04]} 21. Bf5 {[%emt 0:00:49]} c5 {[%emt 0:14:20]} 22. Bc1 {[%emt 0:03:33]} d5 {[%emt 0:04:04]} 23. cxd5 {[%emt 0:00:29]} Nxd5 {[%emt 0:01:54]} 24. Bxd7 {[%emt 0:02:37]} Rad8 {[%emt 0:02:27]} 25. Bg4 {[%emt 0:01:07]} Nb4 {[%emt 0:06:14]} 26. Be3 {[%emt 0:01:24]} Bd3 {[%emt 0:00:59]} 27. Rbd1 {[%emt 0:01:30]} c4 {[%emt 0:00:28]} 28. bxc4 {[%emt 0:01:03]} Bxc4 {[%emt 0:00:07]} 29. Bc5 {[%emt 0:00:43]} Rfe8 {[%emt 0:00:50]} 30. Rxd8 {[%emt 0:00:23]} Rxd8 {[%emt 0:00:04]} 31. Bb6 {[%emt 0:00:27]} Ra8 {[%emt 0:00:58]} 32. a3 {[%emt 0:00:51]} Nc2 {[%emt 0:00:38]} 33. Rc1 {[%emt 0:00:04]} Bd3 {[%emt 0:00:30]} 34. a4 {[%emt 0:00:39]} Ra6 {[%emt 0:00:35]} 35. Bd8 {[%emt 0:00:33]} Ra8 {[%emt 0:00:30]} 36. Bb6 {[%emt 0:00:36]} Ra6 {[%emt 0:00:09]} 37. Bc7 {[%emt 0:00:30]} Ra7 {[%emt 0:00:37]} 38. Bf4 {[%emt 0:00:37]} f5 {[%emt 0:00:38]} 39. Bd1 {[%emt 0:00:17]} Nd4 {[%emt 0:00:28]} 40. Rc8+ {[%emt 0:00:00]} Kf7 {[%emt 0:00:00]} 41. Rc7+ {[%emt 0:07:37]} 1/2-1/2

[Event "37th Andorra Open 2019"]
[Site "Caldea"]
[Date "2019.08.01"]
[Round "6.7"]
[White "Kirk, Ezra"]
[Black "Admiraal, Miguoel"]
[Result "1-0"]
[ECO "B11"]
[WhiteElo "2420"]
[BlackElo "2504"]
[Annotator "ChessBase"]
[PlyCount "47"]
[EventDate "2018.07.21"]
[EventType "swiss"]
[EventCountry "AND"]
[SourceTitle "playchess.com"]
[Source "ChessBase"]
[SourceQuality "1"]
[TimeControl "40/5400+30:1800+30"]

1. e4 {[%emt 0:00:02]} c6 {[%emt 0:00:00]} 2. Nc3 {[%emt 0:00:13]} d5 {[%emt 0:00:17]} 3. Nf3 {[%emt 0:00:05]} h6 {[%emt 0:02:11]} 4. d4 {[%emt 0:06:44]} dxe4 {[%emt 0:00:06]} 5. Nxe4 {[%emt 0:00:05]} Bf5 {[%emt 0:00:05]} 6. Bd3 {[%emt 0:00:39]} e6 {[%emt 0:00:31]} 7. Bf4 {[%emt 0:10:36]} Be7 {[%emt 0:35:27]} 8. Qe2 {[%emt 0:05:42]} Nf6 {[%emt 0:03:13]} 9. Nxf6+ {[%emt 0:07:31]} Bxf6 {[%emt 0:00:51]} 10. O-O-O {[%emt 0:00:28]} O-O {[%emt 0:07:59]} 11. g4 {[%emt 0:15:52]} Bxd3 {[%emt 0:12:09]} 12. Rxd3 {[%emt 0:01:35]} Qd5 {[%emt 0:02:43]} 13. Kb1 {[%emt 0:17:22]} Nd7 {[%emt 0:03:30]} 14. Rg1 {[%emt 0:01:42]} Be7 {[%emt 0:02:10]} 15. g5 {[%emt 0:04:24]} Qf5 {[%emt 0:13:09]} 16. Bc1 {[%emt 0:07:23]} Rfd8 {[%emt 0:00:54]} 17. gxh6 {[%emt 0:02:03]} g6 {[%emt 0:00:10]} 18. Ng5 {[%emt 0:01:59]} Nf6 {[%emt 0:07:46]} 19. h4 {[%emt 0:04:00]} Rf8 {[%emt 0:03:53]} 20. Rf3 {[%emt 0:04:39]} Qd5 {[%emt 0:00:12]} 21. h5 {[%emt 0:00:27]} Nxh5 {[%emt 0:02:41]} 22. Nxf7 {[%emt 0:00:14]} Kh7 {[%emt 0:00:30]} 23. Qd3 {[%emt 0:00:46]} Rg8 {[%emt 0:00:27]} 24. Ne5 {[%emt 0:00:40]} 1-0

[Event "37th Andorra Open 2019"]
[Site "Caldea"]
[Date "2019.08.02"]
[Round "7.1"]
[White "Kogan, Arthur"]
[Black "Lagarde, Maxime"]
[Result "1/2-1/2"]
[ECO "B88"]
[WhiteElo "2535"]
[BlackElo "2597"]
[Annotator "ChessBase"]
[PlyCount "64"]
[EventDate "2018.07.21"]
[EventType "swiss"]
[EventCountry "AND"]
[SourceTitle "playchess.com"]
[Source "ChessBase"]
[SourceQuality "1"]
[TimeControl "40/5400+30:1800+30"]

1. e4 {[%emt 0:00:00]} c5 {[%emt 0:00:08]} 2. Nc3 {[%emt 0:00:00]} Nc6 {[%emt 0:00:06]} 3. Nge2 {[%emt 0:00:33]} d6 {[%emt 0:00:54]} 4. d4 {[%emt 0:00:34]} cxd4 {[%emt 0:00:04]} 5. Nxd4 {[%emt 0:00:03]} Nf6 {[%emt 0:00:29]} 6. Bc4 {[%emt 0:01:25]} Bd7 {[%emt 0:02:02]} 7. O-O {[%emt 0:03:21]} e6 {[%emt 0:04:45]} 8. Be3 {[%emt 0:03:00]} Be7 {[%emt 0:00:34]} 9. Bb3 {[%emt 0:00:29]} O-O {[%emt 0:01:16]} 10. f4 {[%emt 0:00:30]} Nxd4 {[%emt 0:00:16]} 11. Bxd4 {[%emt 0:00:18]} Bc6 {[%emt 0:00:03]} 12. Qe2 {[%emt 0:01:19]} b5 {[%emt 0:02:26]} 13. Nxb5 {[%emt 0:00:49]} Bxe4 {[%emt 0:13:49]} 14. Nxa7 {[%emt 0:07:37]} Qb8 {[%emt 0:15:03]} 15. Nb5 {[%emt 0:00:44]} e5 {[%emt 0:06:22]} 16. Be3 {[%emt 0:09:43]} Qb7 {[%emt 0:09:51]} 17. c4 {[%emt 0:10:48]} Bc6 {[%emt 0:07:45]} 18. Nc3 {[%emt 0:05:00]} Nd7 {[%emt 0:03:27]} 19. Rad1 {[%emt 0:03:28]} Rae8 {[%emt 0:01:18]} 20. f5 {[%emt 0:09:15]} Nf6 {[%emt 0:03:00]} 21. Ba4 {[%emt 0:08:13]} Bxa4 {[%emt 0:03:07]} 22. Nxa4 {[%emt 0:00:44]} d5 {[%emt 0:03:53]} 23. cxd5 {[%emt 0:00:37]} Nxd5 {[%emt 0:01:10]} 24. Qf3 {[%emt 0:03:30]} Qa8 {[%emt 0:01:19]} 25. Rxd5 {[%emt 0:11:33]} Qxa4 {[%emt 0:00:07]} 26. Rxe5 {[%emt 0:01:53]} Bf6 {[%emt 0:01:40]} 27. Rxe8 {[%emt 0:02:24]} Rxe8 {[%emt 0:00:03]} 28. Bf2 {[%emt 0:06:08]} Qxa2 {[%emt 0:04:33]} 29. Qc6 {[%emt 0:00:23]} Rd8 {[%emt 0:02:36]} 30. Re1 {[%emt 0:04:44]} h6 {[%emt 0:00:29]} 31. h3 {[%emt 0:01:26]} Kh7 {[%emt 0:02:18]} 32. Qc2 {[%emt 0:00:35]} Qxb2 {[%emt 0:00:46]} 1/2-1/2

[Event "37th Andorra Open 2019"]
[Site "Caldea"]
[Date "2019.08.02"]
[Round "7.2"]
[White "Kirk, Ezra"]
[Black "Ruiz Castillo, Joshua Daniel"]
[Result "0-1"]
[ECO "C01"]
[WhiteElo "2420"]
[BlackElo "2501"]
[Annotator "ChessBase"]
[PlyCount "78"]
[EventDate "2018.07.21"]
[EventType "swiss"]
[EventCountry "AND"]
[SourceTitle "playchess.com"]
[Source "ChessBase"]
[SourceQuality "1"]
[TimeControl "40/5400+30:1800+30"]

1. e4 {[%emt 0:00:11]} e6 {[%emt 0:07:10]} 2. d4 {[%emt 0:00:09]} d5 {[%emt 0:00:03]} 3. exd5 {[%emt 0:00:05]} exd5 {[%emt 0:00:04]} 4. Nf3 {[%emt 0:00:08]} Nc6 {[%emt 0:00:25]} 5. Bd3 {[%emt 0:12:22]} Bd6 {[%emt 0:00:10]} 6. O-O {[%emt 0:00:38]} Nge7 {[%emt 0:00:05]} 7. Na3 {[%emt 0:13:33]} O-O {[%emt 0:07:38]} 8. Nb5 {[%emt 0:07:47]} Bf5 {[%emt 0:01:49]} 9. Nxd6 {[%emt 0:01:06]} Qxd6 {[%emt 0:00:09]} 10. Bxf5 {[%emt 0:00:16]} Nxf5 {[%emt 0:00:04]} 11. Qd3 {[%emt 0:00:48]} Qd7 {[%emt 0:13:58]} 12. Bf4 {[%emt 0:05:32]} f6 {[%emt 0:00:06]} 13. Bxc7 {[%emt 0:09:38]} Rac8 {[%emt 0:00:48]} 14. Bf4 {[%emt 0:13:48]} Nb4 {[%emt 0:00:04]} 15. Qd2 {[%emt 0:01:49]} Nxc2 {[%emt 0:00:05]} 16. Rac1 {[%emt 0:02:45]} Qa4 {[%emt 0:00:07]} 17. Rfd1 {[%emt 0:10:52]} g5 {[%emt 0:18:23]} 18. g4 {[%emt 0:05:13]} Ncxd4 {[%emt 0:00:39]} 19. Qd3 {[%emt 0:03:55]} Ne2+ {[%emt 0:03:42]} 20. Qxe2 {[%emt 0:00:52]} Qxf4 {[%emt 0:00:03]} 21. Rxc8 {[%emt 0:03:50]} Qxg4+ {[%emt 0:00:03]} 22. Kf1 {[%emt 0:00:42]} Rxc8 {[%emt 0:00:07]} 23. Qe6+ {[%emt 0:00:11]} Kg7 {[%emt 0:00:06]} 24. Qxd5 {[%emt 0:00:55]} Rc7 {[%emt 0:01:11]} 25. b3 {[%emt 0:01:54]} Ne7 {[%emt 0:03:46]} 26. Qd3 {[%emt 0:01:03]} Qh3+ {[%emt 0:00:04]} 27. Kg1 {[%emt 0:00:23]} Ng6 {[%emt 0:00:08]} 28. Qd6 {[%emt 0:00:38]} Nf4 {[%emt 0:00:30]} 29. Qxc7+ {[%emt 0:00:17]} Kh6 {[%emt 0:00:02]} 30. Qxf4 {[%emt 0:00:23]} gxf4 {[%emt 0:00:03]} 31. Rd3 {[%emt 0:00:19]} Qf5 {[%emt 0:00:12]} 32. Ne1 {[%emt 0:00:25]} Qa5 {[%emt 0:00:34]} 33. Nf3 {[%emt 0:02:45]} Qxa2 {[%emt 0:00:09]} 34. Nd2 {[%emt 0:00:23]} Qc2 {[%emt 0:00:12]} 35. Rd6 {[%emt 0:00:26]} Kg7 {[%emt 0:00:42]} 36. Kg2 {[%emt 0:00:23]} Qc7 {[%emt 0:00:19]} 37. Ne4 {[%emt 0:01:05]} f5 {[%emt 0:02:49]} 38. Nf6 {[%emt 0:00:05]} f3+ {[%emt 0:00:06]} 39. Kh3 {[%emt 0:00:11]} Qf7 {[%emt 0:00:07]} 0-1

[Event "37th Andorra Open 2019"]
[Site "Caldea"]
[Date "2019.08.02"]
[Round "7.4"]
[White "Peralta, Fernando"]
[Black "Riff, Jean-Noel"]
[Result "1/2-1/2"]
[ECO "D63"]
[WhiteElo "2562"]
[BlackElo "2495"]
[Annotator "ChessBase"]
[PlyCount "68"]
[EventDate "2018.07.21"]
[EventType "swiss"]
[EventCountry "AND"]
[SourceTitle "playchess.com"]
[Source "ChessBase"]
[SourceQuality "1"]
[TimeControl "40/5400+30:1800+30"]

1. d4 {[%emt 0:00:00]} d5 {[%emt 0:00:00]} 2. c4 {[%emt 0:00:00]} e6 {[%emt 0:00:00]} 3. Nc3 {[%emt 0:00:47]} Be7 {[%emt 0:00:00]} 4. Nf3 {[%emt 0:00:50]} Nf6 {[%emt 0:00:00]} 5. Bg5 {[%emt 0:00:09]} h6 {[%emt 0:00:00]} 6. Bh4 {[%emt 0:00:26]} O-O {[%emt 0:00:12]} 7. e3 {[%emt 0:00:26]} Nbd7 {[%emt 0:02:21]} 8. Rc1 {[%emt 0:00:33]} c5 {[%emt 0:00:13]} 9. dxc5 {[%emt 0:02:08]} dxc4 {[%emt 0:01:50]} 10. c6 {[%emt 0:00:24]} bxc6 {[%emt 0:00:08]} 11. Bxc4 {[%emt 0:00:04]} Nd5 {[%emt 0:06:44]} 12. Bxe7 {[%emt 0:00:51]} Qxe7 {[%emt 0:00:06]} 13. O-O {[%emt 0:01:28]} Bb7 {[%emt 0:10:22]} 14. e4 {[%emt 0:09:04]} Nxc3 {[%emt 0:07:26]} 15. Rxc3 {[%emt 0:00:26]} c5 {[%emt 0:00:03]} 16. Qc2 {[%emt 0:01:05]} Rfd8 {[%emt 0:01:49]} 17. Rc1 {[%emt 0:10:47]} Rac8 {[%emt 0:03:42]} 18. Bf1 {[%emt 0:01:13]} Nf6 {[%emt 0:04:33]} 19. Re1 {[%emt 0:00:14]} Qd7 {[%emt 0:10:05]} 20. h3 {[%emt 0:07:54]} Qc6 {[%emt 0:04:26]} 21. Nd2 {[%emt 0:10:58]} Rxd2 {[%emt 0:03:51]} 22. Qxd2 {[%emt 0:00:11]} Nxe4 {[%emt 0:00:02]} 23. Rxe4 {[%emt 0:00:33]} Qxe4 {[%emt 0:00:02]} 24. Rxc5 {[%emt 0:00:29]} Rf8 {[%emt 0:04:36]} 25. Rc7 {[%emt 0:04:35]} Bd5 {[%emt 0:01:43]} 26. b4 {[%emt 0:18:39]} Qe5 {[%emt 0:08:21]} 27. Qc3 {[%emt 0:17:35]} Qxc3 {[%emt 0:00:16]} 28. Rxc3 {[%emt 0:00:05]} Bxa2 {[%emt 0:00:06]} 29. Ra3 {[%emt 0:00:10]} Bd5 {[%emt 0:00:06]} 30. Rxa7 {[%emt 0:01:38]} Rb8 {[%emt 0:00:54]} 31. b5 {[%emt 0:00:39]} Kf8 {[%emt 0:00:03]} 32. f3 {[%emt 0:01:50]} Rb7 {[%emt 0:03:07]} 33. Ra1 {[%emt 0:02:42]} Ke7 {[%emt 0:00:09]} 34. Kf2 {[%emt 0:00:47]} Ke8 {[%emt 0:00:22]} 1/2-1/2

[Event "37th Andorra Open 2019"]
[Site "Caldea"]
[Date "2019.08.02"]
[Round "7.5"]
[White "Garcia Martin, Marta"]
[Black "Kharitonov, Alexandr"]
[Result "1/2-1/2"]
[ECO "B13"]
[WhiteElo "2335"]
[BlackElo "2540"]
[Annotator "ChessBase"]
[PlyCount "34"]
[EventDate "2018.07.21"]
[EventType "swiss"]
[EventCountry "AND"]
[SourceTitle "playchess.com"]
[Source "ChessBase"]
[SourceQuality "1"]
[TimeControl "40/5400+30:1800+30"]

1. e4 {[%emt 0:00:00]} c6 {[%emt 0:05:44]} 2. d4 {[%emt 0:00:09]} d5 {[%emt 0:00:07]} 3. exd5 {[%emt 0:01:30]} cxd5 {[%emt 0:00:07]} 4. Bd3 {[%emt 0:00:04]} Nc6 {[%emt 0:00:21]} 5. c3 {[%emt 0:00:04]} Qc7 {[%emt 0:00:36]} 6. Ne2 {[%emt 0:00:26]} Bg4 {[%emt 0:00:32]} 7. O-O {[%emt 0:00:44]} e6 {[%emt 0:00:30]} 8. Qe1 {[%emt 0:00:49]} Nf6 {[%emt 0:03:31]} 9. f3 {[%emt 0:13:15]} Bh5 {[%emt 0:00:15]} 10. Qh4 {[%emt 0:00:36]} h6 {[%emt 0:00:08]} 11. Qh3 {[%emt 0:19:41]} Bd6 {[%emt 0:01:30]} 12. Ng3 {[%emt 0:15:28]} Bxg3 {[%emt 0:01:37]} 13. Qxg3 {[%emt 0:00:28]} Qxg3 {[%emt 0:01:28]} 14. hxg3 {[%emt 0:00:04]} Bg6 {[%emt 0:05:20]} 15. Bxg6 {[%emt 0:09:12]} fxg6 {[%emt 0:00:15]} 16. Nd2 {[%emt 0:00:09]} Kf7 {[%emt 0:02:09]} 17. Nb3 {[%emt 0:02:08]} b6 {[%emt 0:06:58]} 1/2-1/2

[Event "37th Andorra Open 2019"]
[Site "Caldea"]
[Date "2019.08.02"]
[Round "7.7"]
[White "Thybo, Jesper Sondergaard"]
[Black "Ochsner, Bjorn Moller"]
[Result "1-0"]
[ECO "E97"]
[WhiteElo "2528"]
[BlackElo "2483"]
[Annotator "ChessBase"]
[PlyCount "83"]
[EventDate "2018.07.21"]
[EventType "swiss"]
[EventCountry "AND"]
[SourceTitle "playchess.com"]
[Source "ChessBase"]
[SourceQuality "1"]
[TimeControl "40/5400+30:1800+30"]

1. d4 {[%emt 0:00:00]} Nf6 {[%emt 0:00:00]} 2. c4 {[%emt 0:00:00]} g6 {[%emt 0:00:00]} 3. Nc3 {[%emt 0:00:00]} Bg7 {[%emt 0:00:00]} 4. e4 {[%emt 0:00:00]} d6 {[%emt 0:00:00]} 5. Nf3 {[%emt 0:00:00]} O-O {[%emt 0:00:02]} 6. Be2 {[%emt 0:00:00]} e5 {[%emt 0:00:19]} 7. O-O {[%emt 0:00:20]} Nc6 {[%emt 0:00:07]} 8. d5 {[%emt 0:00:06]} Ne7 {[%emt 0:00:05]} 9. Bg5 {[%emt 0:00:12]} Nd7 {[%emt 0:11:46]} 10. Nd2 {[%emt 0:02:52]} a5 {[%emt 0:04:52]} 11. a3 {[%emt 0:02:12]} h6 {[%emt 0:15:00]} 12. Be3 {[%emt 0:01:03]} c5 {[%emt 0:02:29]} 13. f3 {[%emt 0:12:14]} Kh7 {[%emt 0:15:49]} 14. Nb5 {[%emt 0:05:19]} Nf6 {[%emt 0:05:59]} 15. b4 {[%emt 0:02:58]} b6 {[%emt 0:00:27]} 16. bxc5 {[%emt 0:03:13]} bxc5 {[%emt 0:00:47]} 17. f4 {[%emt 0:04:49]} exf4 {[%emt 0:00:55]} 18. Bxf4 {[%emt 0:00:10]} Ne8 {[%emt 0:00:47]} 19. Rb1 {[%emt 0:01:21]} f5 {[%emt 0:12:31]} 20. Bg3 {[%emt 0:11:06]} fxe4 {[%emt 0:01:11]} 21. Rxf8 {[%emt 0:01:18]} Bxf8 {[%emt 0:00:02]} 22. Nxe4 {[%emt 0:01:11]} Nf5 {[%emt 0:01:33]} 23. Bf2 {[%emt 0:01:19]} Nf6 {[%emt 0:02:42]} 24. Nxf6+ {[%emt 0:04:59]} Qxf6 {[%emt 0:00:07]} 25. g4 {[%emt 0:00:50]} Ng7 {[%emt 0:06:53]} 26. Bg3 {[%emt 0:01:14]} Ne8 {[%emt 0:07:04]} 27. Qc2 {[%emt 0:06:32]} Be7 {[%emt 0:03:39]} 28. Rf1 {[%emt 0:01:04]} Qg7 {[%emt 0:00:29]} 29. h3 {[%emt 0:08:37]} Ra6 {[%emt 0:02:15]} 30. Bd3 {[%emt 0:01:11]} Bf6 {[%emt 0:02:17]} 31. Qe2 {[%emt 0:03:51]} Bd7 {[%emt 0:00:51]} 32. Qe4 {[%emt 0:05:37]} Rb6 {[%emt 0:02:23]} 33. h4 {[%emt 0:02:19]} Be5 {[%emt 0:00:44]} 34. Bxe5 {[%emt 0:01:52]} dxe5 {[%emt 0:00:03]} 35. h5 {[%emt 0:00:09]} Kh8 {[%emt 0:02:22]} 36. hxg6 {[%emt 0:00:25]} Bxb5 {[%emt 0:00:15]} 37. Rf7 {[%emt 0:11:43]} Nd6 {[%emt 0:00:02]} 38. Rxg7 {[%emt 0:00:05]} Nxe4 {[%emt 0:00:05]} 39. Rh7+ {[%emt 0:00:02]} Kg8 {[%emt 0:00:05]} 40. cxb5 {[%emt 0:00:00]} Nf6 {[%emt 0:00:00]} 41. Rc7 {[%emt 0:03:11]} Nxg4 {[%emt 0:03:53]} 42. Bf5 {[%emt 0:01:42]} 1-0